bitfinex/quotes_ETHUSD_20251111
["timestamp","ask_amount","ask_price","bid_price","bid_amount"]
[1762847522888,0.663,3548.8,3548.6,2.81795366]
[1762847523096,0.012,3548.9,3548.1,4.07808247]
[1762847523303,0.012,3548.9,3548.8,2.81785392]
[1762847523524,0.406,3548.9,3548.0,0.001]
[1762847524027,0.406,3548.9,3548.7,2.81793068]
[1762847524185,0.5922,3548.9,3548.6,0.001]
[1762847524391,0.4559,3548.7,3548.6,0.001]
[1762847524824,3.76403332,3548.7,3548.6,0.001]
[1762847525126,2.81825099,3548.3,3548.2,0.001]
[1762847525328,3.93715099,3548.3,3548.2,0.001]
[1762847525528,3.76435099,3548.3,3548.2,0.001]
[1762847525729,2.81840985,3548.1,3548.0,0.001]
[1762847525929,5.03908593,3548.1,3548.0,0.001]
[1762847526243,5.03908593,3548.1,3547.8,0.001]
[1762847526244,2.81856873,3547.9,3547.8,0.001]
[1762847526539,2.81856873,3547.9,3546.6,0.001]
[1762847526540,2.81872762,3547.7,3546.6,0.001]
[1762847526740,4.43762762,3547.7,3546.6,0.001]
[1762847526893,4.92782762,3547.7,3546.6,0.001]
[1762847527089,5.76163766,3547.7,3546.6,0.001]
[1762847527303,6.16714166,3547.7,3546.6,0.001]
[1762847527715,5.66714166,3547.7,3546.6,0.001]
[1762847527916,6.16714166,3547.7,3546.6,0.001]
[1762847529693,0.4559,3547.7,3547.1,2.81914689]
[1762847529890,1.6091,3547.7,3546.6,0.001]
[1762847530104,4.42782762,3547.7,3546.7,2.81952229]
[1762847530398,4.42782762,3547.7,3546.6,0.001]
[1762847530399,1.1189,3547.7,3547.1,2.81913103]
[1762847530636,0.663,3547.7,3547.2,2.81912362]
[1762847530879,0.663,3547.7,3546.7,2.81944333]
[1762847531080,0.663,3547.7,3547.2,2.81912024]
[1762847531278,0.663,3547.7,3547.1,2.81918684]
[1762847531428,0.663,3547.7,3547.0,2.819273]
[1762847531629,0.1862,3547.9,3546.6,0.001]
[1762847531836,0.11289086,3548.7,3547.4,2.81896575]
[1762847532081,0.4922,3549.0,3547.6,3.12993342]
[1762847532381,0.663,3548.6,3547.7,1.259712]
[1762847532580,0.4922,3549.0,3547.8,2.81864817]
[1762847532878,0.002,3549.0,3548.5,2.81808278]
[1762847533170,0.002,3549.0,3548.0,1.259712]
[1762847533171,0.664,3548.8,3548.0,1.259712]
[1762847533381,0.664,3548.8,3548.6,2.81799405]
[1762847533531,0.664,3548.7,3548.6,2.81801273]
[1762847533967,0.664,3548.7,3548.1,0.40782156]
[1762847534152,0.664,3548.7,3548.6,2.81801273]
[1762847534361,0.012,3548.9,3548.1,0.40782156]
[1762847534362,0.012,3548.9,3548.8,2.81785392]
[1762847534558,0.012,3548.9,3548.1,0.40782156]
[1762847534559,0.676,3548.9,3548.1,0.40782156]
[1762847534777,0.8622,3548.9,3547.6,4.36148125]
[1762847534939,3.67998861,3548.9,3548.1,2.81836465]
[1762847535274,2.81788472,3548.8,3547.9,2.8185617]
[1762847535472,2.81788472,3548.8,3547.9,2.81850265]
[1762847535473,0.4902,3548.8,3547.9,2.81850265]
[1762847535679,2.81801273,3548.6,3547.6,1.54270857]
[1762847535852,0.4902,3548.7,3548.1,2.81835384]
[1762847536175,0.4902,3548.7,3547.7,0.40327086]
[1762847536176,0.664,3548.6,3548.2,2.8182725]
[1762847536478,0.664,3548.6,3547.7,0.40327086]
[1762847536643,0.4902,3548.5,3547.7,3.22193852]
[1762847536860,0.4902,3548.5,3547.7,0.40327086]
[1762847537059,3.3083083,3548.5,3547.8,2.81864657]
[1762847537278,0.4902,3548.5,3547.6,1.260712]
[1762847537452,0.4902,3548.5,3547.6,1.91767176]
[1762847537651,3.30831404,3548.5,3547.7,2.81872762]
[1762847537883,3.30842042,3548.4,3547.7,2.81870503]
[1762847538086,0.4902,3548.4,3547.8,2.48999999]
[1762847538289,3.30838953,3548.4,3547.8,2.48999999]
[1762847538601,3.98744071,3548.4,3547.8,2.48999999]
[1762847539087,3.30846384,3548.3,3547.8,2.48999999]
[1762847539490,0.4902,3548.2,3547.8,2.48999999]
[1762847539690,0.4902,3548.2,3547.6,0.001]
[1762847539691,0.1862,3547.9,3547.6,0.001]
[1762847539894,0.67904713,3548.4,3547.7,2.48999999]
[1762847539895,0.663,3547.8,3547.7,2.48999999]
[1762847540191,0.664,3547.8,3547.7,2.48999999]
[1762847540396,2.81872762,3547.7,3547.6,0.001]
[1762847540595,3.76482762,3547.7,3547.6,0.001]
[1762847541289,0.664,3547.7,3547.6,0.001]
[1762847542065,0.002,3548.4,3547.6,0.001]
[1762847542267,0.665,3548.3,3547.9,2.81849523]
[1762847542475,0.665,3548.2,3548.1,2.81835291]
[1762847542864,0.002,3548.4,3548.2,2.81825277]
[1762847543190,0.002,3548.4,3547.7,2.81872762]
[1762847543492,0.002,3548.4,3548.3,2.81825099]
[1762847543691,0.002,3548.4,3548.3,2.84643349]
[1762847543895,0.667,3548.4,3547.8,1.54168476]
[1762847544061,0.002,3548.4,3548.3,4.07796299]
[1762847544257,0.002,3548.4,3548.3,4.79577647]
[1762847544482,0.002,3548.4,3548.3,4.76759397]
[1762847544885,0.002,3548.4,3548.3,1.94934298]
[1762847545072,0.002,3548.4,3548.3,1.259712]
[1762847545373,0.002,3548.4,3548.3,2.81825099]
[1762847546300,0.002,3548.4,3547.8,0.28197276]
[1762847546469,0.002,3548.4,3548.2,2.81825783]
[1762847546801,0.002,3548.8,3548.3,4.10614549]
[1762847547000,1e-08,3548.9,3548.8,7.68379378]
[1762847547200,1e-08,3548.9,3548.8,8.0711287]
[1762847547494,0.002,3549.7,3549.2,2.81753634]
[1762847547667,0.002,3549.7,3549.2,4.07724834]
[1762847547867,0.002,3549.7,3549.2,4.48275234]
[1762847548068,0.002,3549.7,3549.2,5.35211302]
[1762847548671,0.002,3549.7,3549.2,4.94660902]
[1762847548904,0.793,3549.3,3548.4,3.95666562]
[1762847549101,0.9171,3549.3,3547.4,5.12543586]
[1762847549315,0.002,3549.3,3547.9,4.48862154]
[1762847549518,0.002,3549.3,3548.1,1.259712]
[1762847549726,0.002,3549.3,3548.4,1.259712]
[1762847549934,0.002,3549.3,3548.9,2.8177705]
[1762847550130,0.002,3549.3,3548.7,2.81785767]
[1762847550286,0.002,3549.3,3548.8,2.81782625]
[1762847550481,0.002,3549.3,3548.0,1.665216]
[1762847550731,0.4591,3549.2,3548.1,0.67916519]
[1762847551015,0.4591,3549.2,3548.7,2.81792494]
[1762847551216,0.4591,3549.2,3548.8,2.81785219]
[1762847551378,0.4591,3549.2,3548.8,2.81779112]
[1762847551582,0.4591,3549.2,3548.9,2.84594204]
[1762847551814,0.002,3549.3,3549.2,2.81753634]
[1762847552015,0.002,3549.3,3549.2,3.10210775]
[1762847552016,0.599,3549.3,3549.2,3.10210775]
[1762847552217,0.002,3549.3,3549.2,3.10210775]
[1762847552922,0.002,3549.3,3549.2,8.91477293]
[1762847553106,0.002,3549.3,3549.2,9.70761185]
[1762847553306,0.002,3549.3,3549.2,9.32027693]
[1762847554121,1e-08,3549.7,3549.6,4.48243484]
[1762847554312,1e-08,3549.7,3549.6,11.22741501]
[1762847554821,0.002,3550.5,3550.0,3.2224054]
[1762847555026,0.002,3550.5,3550.0,9.03507058]
[1762847556602,0.002,3550.5,3550.0,9.70207058]
[1762847558853,0.049,3551.9,3551.8,2.81547384]
[1762847558854,0.01,3551.9,3551.8,2.81547384]
[1762847559152,0.01,3551.9,3551.8,5.07194908]
[1762847559443,0.01,3551.9,3551.8,4.63829035]
[1762847559646,0.01,3551.9,3551.8,9.19124353]
[1762847560154,0.01,3552.9,3552.8,2.81468137]
[1762847560333,0.01,3552.9,3552.8,3.09614951]
[1762847561020,0.01,3552.9,3552.8,4.76136551]
[1762847562354,0.002,3553.1,3553.0,4.47973893]
[1762847562653,0.002,3553.1,3553.0,9.03269211]
[1762847563145,0.002,3553.1,3553.0,8.62718811]
[1762847563348,0.002,3553.1,3553.0,5.24656869]
[1762847564049,0.458,3553.1,3553.0,1.259712]
[1762847564248,0.458,3553.1,3552.9,2.48999999]
[1762847564249,0.9171,3553.1,3552.9,2.48999999]
[1762847564417,0.456,3553.0,3552.8,2.81467968]
[1762847564611,0.456,3553.0,3551.8,5.11605769]
[1762847564612,0.9151,3553.0,3552.3,5.30507754]
[1762847564844,0.1966,3552.9,3552.3,5.30506545]
[1762847565147,0.6557,3552.9,3552.4,1.259712]
[1762847565315,0.39282084,3552.8,3551.8,5.11605769]
[1762847565514,0.6557,3552.9,3551.8,7.60605768]
[1762847565709,0.6557,3552.9,3552.3,2.81505602]
[1762847565947,0.1966,3552.9,3552.3,2.81505602]
[1762847566145,0.4591,3552.8,3552.3,2.81505602]
[1762847566312,0.4591,3552.8,3552.3,2.81501961]
[1762847566514,0.456,3552.4,3552.1,4.07488684]
[1762847566713,0.456,3552.2,3552.1,1.259712]
[1762847566947,0.456,3552.2,3551.8,3.0531045]
[1762847567123,0.9151,3552.2,3551.1,1.269712]
[1762847567325,0.9151,3552.2,3551.1,0.01]
[1762847567653,3.27434045,3552.1,3551.3,2.81581035]
[1762847567827,0.6526,3551.4,3551.3,2.81581035]
[1762847568065,1.1117,3551.4,3551.1,0.01]
[1762847568240,1.1117,3551.4,3551.2,2.81594953]
[1762847568434,1.1117,3551.4,3551.3,1.259712]
[1762847568823,1.1117,3551.4,3551.2,2.8158911]
[1762847569036,0.9151,3551.3,3551.1,0.01]
[1762847569223,0.456,3551.2,3551.1,0.01]
[1762847569418,0.4591,3551.3,3551.2,2.81594953]
[1762847569620,0.1966,3551.4,3551.2,2.81594953]
[1762847569852,0.1966,3551.4,3551.3,2.81587024]
[1762847570016,0.4591,3551.7,3551.1,0.01]
[1762847570321,0.4591,3551.7,3551.1,3.10861489]
[1762847570520,0.4591,3551.7,3551.4,2.81572335]
[1762847570933,0.4591,3551.7,3551.2,2.81594953]
[1762847570934,0.456,3551.5,3551.1,0.2926136]
[1762847571134,0.456,3551.5,3551.1,0.01]
[1762847571317,0.577,3551.9,3551.1,0.01]
[1762847571318,0.456,3551.2,3551.1,0.01]
[1762847571733,0.9151,3551.2,3550.8,2.81624546]
[1762847571927,0.1966,3550.9,3550.8,2.81624546]
[1762847572217,0.6526,3550.9,3550.8,2.81624546]
[1762847572717,0.6526,3550.9,3550.8,2.81626675]
[1762847572919,0.4591,3551.1,3551.0,2.81610813]
[1762847573123,0.1966,3551.2,3551.1,2.81602883]
[1762847573854,1.456312,3552.0,3550.8,0.5632691]
[1762847573855,0.1966,3552.0,3551.7,2.81555157]
[1762847574152,0.1966,3552.0,3551.9,2.81539457]
[1762847574354,0.1966,3552.0,3550.8,0.5632691]
[1762847574355,0.1966,3552.0,3551.1,1.259712]
[1762847574540,0.4591,3551.9,3551.2,0.58126652]
[1762847574946,0.4591,3551.9,3551.6,2.81560676]
[1762847575318,0.456,3551.7,3551.6,2.81563239]
[1762847575523,0.456,3551.7,3551.2,0.58126652]
[1762847575755,0.4887,3551.6,3551.5,2.81570664]
[1762847576125,0.4887,3551.6,3551.5,2.81571167]
[1762847576320,0.9828,3551.6,3550.8,0.5632691]
[1762847576755,0.9828,3551.6,3550.8,1.8229811]
[1762847577122,0.4887,3551.5,3550.8,0.5632691]
[1762847577359,0.4887,3551.5,3550.5,1.259712]
[1762847577564,0.667,3551.4,3550.6,2.48999999]
[1762847577729,0.667,3551.4,3550.9,2.81617685]
[1762847577925,0.1809,3550.7,3550.6,2.48999999]
[1762847578128,0.6678,3550.7,3549.9,0.001]
[1762847578350,0.4869,3550.2,3549.9,0.001]
[1762847578549,0.667,3550.2,3549.9,0.001]
[1762847578751,0.667,3550.2,3550.0,2.81689826]
[1762847578953,1.1539,3550.2,3549.9,0.001]
[1762847579265,1.1539,3550.2,3550.1,2.82682206]
[1762847579674,0.1809,3550.7,3550.1,0.57447928]
[1762847579872,0.1809,3550.7,3550.6,2.81642539]
[1762847580230,0.1809,3550.7,3550.1,1.269712]
[1762847580231,0.6668,3551.1,3550.1,1.269712]
[1762847580464,0.667,3551.0,3550.1,0.01]
[1762847580671,0.667,3551.0,3550.3,1.259712]
[1762847580855,0.1809,3551.1,3550.7,1.259712]
[1762847581174,0.1809,3551.1,3551.0,2.81610813]
[1762847581556,0.667,3551.3,3550.7,0.4076296]
[1762847581755,0.667,3551.3,3551.2,2.81593602]
[1762847581946,0.667,3551.4,3551.3,2.81587024]
[1762847582351,1.1529,3551.5,3551.4,2.81579095]
[1762847582773,1.6398,3551.5,3551.4,2.81579095]
[1762847582939,0.9728,3551.5,3551.4,2.81579095]
[1762847583140,0.667,3551.6,3551.5,2.81571167]
[1762847583335,0.002,3551.7,3551.5,2.81571167]
[1762847583540,0.002,3551.7,3551.6,2.81563239]
[1762847583755,0.002,3551.7,3551.5,2.81569728]
[1762847584972,0.002,3551.7,3551.6,5.30563238]
[1762847585281,0.002,3551.7,3551.6,6.17408559]
[1762847593026,0.4889,3551.7,3551.6,3.3584532]
[1762847593207,0.9748,3551.7,3551.6,5.30563238]
[1762847593395,0.9748,3551.7,3551.2,2.48999999]
[1762847593597,0.4869,3551.5,3551.3,2.81585736]
[1762847593807,0.4869,3551.4,3551.3,2.81585736]
[1762847594208,0.4869,3551.4,3551.2,2.48999999]
[1762847594521,0.4869,3551.4,3551.3,2.81587024]
[1762847594724,0.4869,3551.4,3551.2,5.30594424]
[1762847594940,0.9728,3551.3,3550.9,1.259712]
[1762847595085,1.1519,3551.6,3551.2,2.81594953]
[1762847595522,0.4869,3551.3,3551.1,2.48999999]
[1762847595708,0.4859,3551.5,3551.1,2.48999999]
[1762847595910,0.4869,3551.2,3551.1,2.48999999]
[1762847596404,0.9728,3551.2,3551.1,2.48999999]
[1762847596605,0.9728,3551.2,3550.9,2.81613311]
[1762847596815,0.9728,3551.1,3550.6,5.30642031]
[1762847596992,0.1809,3550.8,3550.2,2.48999999]
[1762847597308,0.1809,3550.8,3550.7,0.001]
[1762847597519,0.6668,3550.8,3550.7,0.001]
[1762847597836,1.1537,3550.8,3550.7,0.001]
[1762847598199,3.96996675,3550.8,3550.7,0.001]
[1762847599336,2.81656105,3550.5,3550.3,0.001]
[1762847599498,3.30348404,3550.4,3550.3,0.001]
[1762847599701,3.96405915,3550.4,3550.3,0.001]
[1762847600019,4.44995915,3550.4,3550.3,0.001]
[1762847600431,1.63337511,3550.4,3550.3,0.001]
[1762847600645,1.6398,3550.4,3550.3,0.001]
[1762847601011,0.9728,3550.4,3550.3,0.001]
[1762847601235,4.45638404,3550.4,3550.3,0.001]
[1762847602200,2.81699275,3549.9,3548.6,1.259712]
[1762847602406,0.667,3549.8,3549.1,2.81757882]
[1762847602605,0.8479,3549.8,3549.3,2.81745577]
[1762847602802,0.8479,3549.8,3548.6,1.259712]
[1762847603139,0.8479,3549.8,3549.5,2.81723883]
[1762847603324,1.3338,3549.8,3549.5,2.81723883]
[1762847603531,1.3338,3549.8,3549.4,2.81736473]
[1762847603713,1.3338,3549.8,3548.8,4.07750102]
[1762847603714,1.3338,3549.8,3548.9,1.259712]
[1762847603914,0.1809,3549.8,3548.9,4.55295318]
[1762847604134,0.1809,3549.8,3549.7,2.81713947]
[1762847604329,0.8479,3549.8,3549.1,1.259712]
[1762847604504,0.8479,3549.8,3549.4,2.81734856]
[1762847604703,0.1809,3549.8,3549.0,1.99690564]
[1762847605035,0.667,3549.7,3549.6,2.81721884]
[1762847606247,0.667,3549.7,3549.0,1.99690564]
[1762847606248,0.1809,3549.8,3549.7,2.81713947]
[1762847606408,0.8479,3549.8,3549.7,2.81713947]
[1762847606738,0.1855,3550.2,3549.8,2.81698889]
[1762847606963,0.8525,3550.2,3550.1,2.81682206]
[1762847607157,0.667,3550.2,3550.1,2.81682206]
[1762847607506,0.4911,3550.5,3549.7,3.38053691]
[1762847607705,0.4911,3550.5,3549.3,4.55295318]
[1762847607706,0.4911,3550.5,3550.3,2.81664691]
[1762847607905,0.531,3550.4,3550.0,2.81687901]
[1762847608146,0.531,3550.4,3550.3,2.81666338]
[1762847608360,0.1855,3550.6,3550.5,2.81650471]
[1762847608506,0.8525,3550.6,3550.5,2.81650471]
[1762847608705,1.3355,3550.6,3550.5,2.81650471]
[1762847609331,0.01,3550.9,3550.1,5.81266518]
[1762847609533,0.569,3550.8,3550.7,2.81634232]
[1762847609856,1.5431,3550.8,3549.3,0.41791826]
[1762847610010,1.5431,3550.8,3549.1,0.405504]
[1762847610011,4.3594368,3550.8,3549.1,0.405504]
[1762847610204,4.3594368,3550.8,3549.3,1.259712]
[1762847610205,0.4911,3550.7,3549.3,1.259712]
[1762847610405,1.12248728,3550.6,3549.2,1.259712]
[1762847610606,1.12248728,3550.6,3549.1,4.07731511]
[1762847610914,2.81672024,3550.3,3549.1,0.405504]
[1762847611132,0.45548728,3550.6,3549.6,2.81720605]
[1762847611133,1.1591,3550.2,3549.6,2.81720605]
[1762847611340,1.1591,3550.2,3549.0,1.99690564]
[1762847611341,1.1591,3550.2,3549.3,1.259712]
[1762847611521,0.4911,3550.1,3549.0,1.259712]
[1762847611721,0.4911,3550.1,3549.6,2.81716061]
[1762847612229,0.4911,3550.1,3549.1,0.40774352]
[1762847612436,0.667,3550.0,3549.2,2.81753634]
[1762847612737,0.667,3550.0,3549.5,2.81722357]
[1762847612946,1.1581,3550.0,3549.6,2.81721772]
[1762847613121,1.1581,3550.0,3548.5,4.55295318]
[1762847613122,1.1581,3550.0,3549.1,1.259712]
[1762847613347,0.4911,3550.0,3548.9,1.259712]
[1762847613583,0.667,3549.9,3549.8,2.81699865]
[1762847614071,1.6411,3549.9,3549.6,2.81718153]
[1762847614272,0.483,3549.7,3549.6,2.81721884]
[1762847614475,1.15,3549.7,3549.6,2.81721884]
[1762847614784,1.6411,3549.7,3549.1,1.260712]
[1762847614965,0.4911,3549.6,3549.1,0.001]
[1762847615863,0.88862129,3549.6,3549.1,0.001]
[1762847616237,0.4911,3549.5,3549.1,0.001]
[1762847616644,0.483,3549.2,3549.1,0.001]
[1762847616944,1.15,3549.2,3549.1,0.001]
[1762847617167,1.6237,3549.2,3549.1,0.001]
[1762847617855,1.15,3549.2,3549.1,0.001]
[1762847618258,1.6237,3549.2,3549.1,0.001]
[1762847618598,1.15,3549.2,3549.1,0.001]
[1762847618752,2.81667317,3550.3,3549.1,0.001]
[1762847618753,0.4737,3549.9,3549.1,0.001]
[1762847619087,0.667,3549.8,3549.4,2.81731568]
[1762847619287,0.667,3549.7,3549.4,1.8232972]
[1762847619494,0.667,3549.6,3549.5,2.81729821]
[1762847619674,0.4737,3550.2,3549.6,2.81721526]
[1762847619880,0.667,3550.1,3549.6,2.81721526]
[1762847620191,0.667,3550.0,3549.9,2.81698076]
[1762847620392,0.667,3550.0,3549.7,2.81711065]
[1762847620553,0.667,3550.0,3549.4,0.5635852]
[1762847620781,0.667,3550.0,3549.6,2.81721417]
[1762847620983,0.667,3550.0,3549.1,0.001]
[1762847620984,0.4737,3550.2,3549.7,2.81713096]
[1762847621182,0.667,3550.1,3549.7,2.81713096]
[1762847621489,0.667,3550.1,3549.1,1.260712]
[1762847621689,0.667,3550.1,3549.6,2.81715042]
[1762847622096,1.1407,3550.1,3549.7,2.81713915]
[1762847622820,0.666,3550.0,3549.9,2.81690404]
[1762847623022,0.002,3550.4,3549.8,2.81703837]
[1762847623201,0.667,3550.3,3549.8,2.81703837]
[1762847623523,0.667,3550.3,3550.2,2.81674271]
[1762847624011,0.666,3550.3,3550.2,2.81674271]
[1762847624189,0.002,3550.4,3550.2,2.81674271]
[1762847624190,0.002,3550.4,3550.3,2.81666338]
[1762847624553,0.002,3550.4,3550.2,3.05336236]
[1762847624720,0.002,3550.4,3550.3,2.81666338]
[1762847625619,0.002,3550.4,3550.2,3.05336236]
[1762847626122,0.002,3550.4,3550.2,5.87008884]
[1762847626339,0.002,3550.4,3550.2,2.48999999]
[1762847626513,0.9459,3550.3,3550.2,2.48999999]
[1762847627531,3.76256338,3550.3,3550.2,2.48999999]
[1762847627711,0.9459,3550.3,3550.2,2.48999999]
[1762847627890,0.002,3550.4,3550.2,2.48999999]
[1762847628423,0.4722,3550.3,3550.2,2.48999999]
[1762847628648,0.002,3550.4,3550.2,2.48999999]
[1762847628811,0.666,3550.3,3550.2,5.30672646]
[1762847629157,0.666,3550.3,3550.2,2.81672647]
[1762847629453,0.002,3550.4,3550.1,2.48999999]
[1762847629618,1.1382,3550.3,3550.1,2.48999999]
[1762847629808,0.666,3550.3,3550.2,2.81674271]
[1762847630404,0.666,3550.3,3550.1,2.48999999]
[1762847630636,0.666,3550.3,3550.2,2.81674271]
[1762847630808,0.668,3550.4,3550.3,2.81666338]
[1762847631420,0.002,3550.4,3550.2,2.81672266]
[1762847631620,0.002,3550.4,3550.3,2.81666338]
[1762847632249,0.002,3550.4,3550.3,7.40689751]
[1762847632430,0.002,3550.4,3550.3,7.37873088]
[1762847632810,0.002,3550.4,3550.3,4.88873089]
[1762847635346,0.4742,3550.4,3550.3,1.259712]
[1762847635708,0.4742,3550.4,3549.1,4.45903553]
[1762847635709,1.6328,3550.4,3549.3,0.665]
[1762847635934,0.4523,3550.2,3549.6,1.259712]
[1762847636266,0.4523,3550.2,3549.9,1.259712]
[1762847636464,0.9459,3550.2,3549.9,2.81697503]
[1762847636667,0.002,3550.4,3550.3,2.81666338]
[1762847637374,0.002,3550.4,3549.9,3.50636069]
[1762847637375,0.9479,3550.4,3550.2,2.81667629]
[1762847637667,0.9479,3550.4,3550.0,2.8169014]
[1762847637668,0.9479,3550.4,3550.3,2.81666338]
[1762847638034,0.4543,3550.4,3550.3,2.81666338]
[1762847638235,0.002,3550.4,3550.3,2.81666338]
[1762847639183,0.002,3550.4,3549.9,0.68938943]
[1762847639479,0.002,3550.4,3550.1,1.259712]
[1762847639636,0.002,3550.4,3550.3,2.81666338]
[1762847640183,0.002,3550.4,3550.0,2.81687953]
[1762847640330,0.002,3550.4,3550.3,4.07637538]
[1762847641144,0.002,3550.4,3550.3,7.01246026]
[1762847641344,0.002,3550.4,3550.3,5.56479764]
[1762847641568,0.002,3550.4,3550.3,8.05479763]
[1762847644109,0.002,3550.4,3550.3,7.63687937]
[1762847644265,0.002,3550.4,3550.3,8.53888324]
[1762847644464,0.002,3550.4,3550.3,9.20388324]
[1762847645895,0.002,3550.4,3550.3,9.6218015]
[1762847646096,0.002,3550.4,3550.3,9.20388324]
[1762847646688,0.002,3551.2,3551.0,2.81610813]
[1762847647002,0.002,3551.2,3550.3,11.76417125]
[1762847647003,0.002,3551.2,3551.1,2.46599999]
[1762847647405,0.4938,3551.2,3551.1,2.46599999]
[1762847647567,0.9486,3551.2,3551.1,2.46599999]
[1762847647769,1.39144139,3551.2,3551.1,2.46599999]
[1762847648103,0.9486,3551.2,3551.1,2.46599999]
[1762847648404,3.76454953,3551.2,3551.1,2.46599999]
[1762847648701,0.9486,3551.2,3551.1,2.46599999]
[1762847649001,0.4938,3551.2,3551.1,2.46599999]
[1762847649370,0.9486,3551.2,3551.1,2.46599999]
[1762847650290,1.39145311,3551.2,3551.1,2.46599999]
[1762847651104,0.9486,3551.2,3551.1,2.46599999]
[1762847651810,1.6126,3551.2,3551.1,2.46599999]
[1762847652389,1.6126,3551.2,3551.0,2.46599999]
[1762847652390,0.9486,3551.2,3551.0,2.46599999]
[1762847652585,1.1188,3551.1,3551.0,2.46599999]
[1762847652802,1.6106,3551.1,3551.0,2.46599999]
[1762847656212,1.77186,3551.1,3550.9,0.001]
[1762847656414,0.9466,3551.0,3550.9,0.001]
[1762847656714,3.76270813,3551.0,3550.9,0.001]
[1762847656914,0.9466,3551.0,3550.9,0.001]
[1762847657111,1.6106,3551.0,3550.9,0.001]
[1762847657503,2.06957543,3551.0,3550.9,0.001]
[1762847657712,0.9466,3551.0,3550.9,0.001]
[1762847658022,1.6106,3551.0,3550.9,0.001]
[1762847658387,0.002,3551.2,3550.9,2.81712301]
[1762847658591,0.002,3551.2,3551.1,2.81602883]
[1762847658802,0.508,3551.2,3551.1,2.81602883]
[1762847659002,0.002,3551.2,3551.1,6.09193478]
[1762847661932,0.002,3551.2,3551.1,8.17506904]
[1762847662736,1e-08,3551.6,3551.1,14.48506904]
[1762847662946,1e-08,3551.6,3551.5,8.9389632]
[1762847663235,1e-08,3551.6,3551.5,12.51388145]
[1762847663417,1e-08,3551.6,3551.5,15.02769647]
[1762847663617,1e-08,3551.6,3551.5,15.32561729]
[1762847664896,0.002,3552.1,3551.5,15.32561729]
[1762847664897,1e-08,3552.1,3551.8,1.665216]
[1762847665140,1e-08,3552.1,3552.0,8.93856684]
[1762847665298,1e-08,3552.1,3552.0,12.0326559]
[1762847665635,1e-08,3552.1,3552.0,11.26365015]
[1762847666045,1e-08,3552.1,3552.0,11.92765015]
[1762847667315,1e-08,3552.1,3551.8,2.46599999]
[1762847667316,0.97090001,3552.1,3551.8,2.46599999]
[1762847667642,0.49800001,3552.1,3551.9,2.81537295]
[1762847667837,0.498,3552.0,3551.9,2.81537295]
[1762847668038,1.1581,3552.0,3551.9,4.07508495]
[1762847668201,1.1581,3552.0,3551.9,6.54108494]
[1762847668401,1.1581,3552.0,3551.9,2.46599999]
[1762847669716,1.1581,3552.0,3551.4,2.46599999]
[1762847669927,0.4729,3551.5,3551.4,6.54148711]
[1762847670125,0.498,3551.9,3551.8,2.81547384]
[1762847670324,0.9709,3551.9,3551.8,2.81547384]
[1762847670503,0.1872,3552.0,3551.9,2.81539457]
[1762847670704,0.1872,3552.0,3551.6,2.81561468]
[1762847670901,0.6852,3552.0,3551.4,3.2012393]
[1762847671143,0.1872,3552.0,3551.9,2.81539457]
[1762847672146,1e-08,3552.1,3551.9,2.81539457]
[1762847672147,1e-08,3552.1,3552.0,2.81531531]
[1762847672764,0.47290001,3552.1,3551.5,0.44609513]
[1762847673067,0.4729,3551.6,3551.5,2.46599999]
[1762847673271,1.1359,3551.6,3551.1,0.001]
[1762847673493,3.28918834,3550.8,3550.5,0.001]
[1762847673705,0.4729,3550.6,3550.5,0.001]
[1762847674047,0.9709,3550.6,3550.1,0.011]
[1762847674252,0.4729,3550.4,3550.1,0.011]
[1762847674448,3.28948404,3550.4,3550.1,0.011]
[1762847674682,0.9709,3550.4,3550.1,0.011]
[1762847676166,0.9709,3550.4,3550.1,2.8278014]
[1762847676714,0.4729,3550.4,3550.3,3.54546178]
[1762847676919,0.1872,3550.8,3550.3,0.28388014]
[1762847677211,0.9709,3550.4,3550.3,0.001]
[1762847677415,0.9709,3550.4,3550.3,2.81766338]
[1762847678299,0.9709,3550.4,3550.3,0.001]
[1762847678500,0.9709,3550.4,3550.3,2.81766338]
[1762847679103,0.9709,3550.4,3550.3,0.001]
[1762847680101,1.1359,3550.4,3550.3,0.001]
[1762847680412,1.6339,3550.4,3550.3,2.81766338]
[1762847680954,0.663,3550.4,3550.3,3.38221124]
[1762847681589,0.1872,3550.8,3550.7,2.81634607]
[1762847681790,0.1872,3551.2,3551.0,2.81608725]
[1762847681994,0.1872,3551.2,3550.9,2.81616647]
[1762847681995,1.5879,3551.1,3550.9,2.81616647]
[1762847682193,1.115,3551.1,3550.7,2.46599999]
[1762847682398,0.4729,3550.8,3550.7,2.46599999]
[1762847682819,0.9709,3550.8,3550.7,2.46599999]
[1762847682987,0.9709,3550.8,3550.7,5.28234606]
[1762847683187,0.9709,3550.8,3550.7,2.46599999]
[1762847683805,0.9709,3550.8,3550.7,5.28234606]
[1762847684024,0.9709,3550.8,3550.7,2.46599999]
[1762847684791,0.9709,3550.8,3550.7,5.28234606]
[1762847686736,0.002,3550.9,3550.8,2.81626675]
[1762847686903,0.665,3550.9,3550.8,2.81626675]
[1762847687626,0.665,3550.9,3550.8,5.28226674]
[1762847688227,0.665,3550.9,3550.8,2.46599999]
[1762847688455,1.6359,3550.9,3550.8,2.46599999]
[1762847690131,1.6359,3550.9,3550.8,5.28226674]
[1762847690515,0.665,3550.9,3550.8,5.28226674]
[1762847691001,0.664,3550.9,3550.8,5.28226674]
[1762847691631,1.1369,3550.9,3550.8,5.28226674]
[1762847691832,1.6349,3550.9,3550.8,5.28226674]
[1762847693047,1.1369,3550.9,3550.8,2.46599999]